fUST/lending_fUST_20240725
["ID","MTS","AMOUNT","RATE_DAILY","PERIOD"]
[333162141,1721896241045,-673.12,0.00013698,2]
[333162143,1721896241056,-500.0,0.00013698,2]
[333162145,1721896241066,-500.0,0.00013698,2]
[333162147,1721896241077,-1537.44,0.00013698,2]
[333162149,1721896241086,-500.0,0.00013698,2]
[333162151,1721896241097,-500.0,0.00013698,2]
[333162153,1721896241107,-952.09,0.00013698,2]
[333162156,1721896241117,-500.0,0.00013698,2]
[333162158,1721896241127,-500.0,0.00013698,2]
[333162160,1721896241138,-500.0,0.00013698,2]
[333162162,1721896241149,-500.0,0.00013698,2]
[333162164,1721896241160,-500.0,0.00013698,2]
[333162166,1721896241169,-500.0,0.00013698,2]
[333162168,1721896241181,-612.49562166,0.00013698,2]
[333162170,1721896241191,-500.0,0.00013698,2]
[333162172,1721896241202,-500.0,0.00013698,2]
[333162174,1721896241214,-151.0,0.00013698,2]
[333162177,1721896241226,-500.0,0.00013698,2]
[333162179,1721896241236,-151.0,0.00013698,2]
[333162181,1721896241247,-500.0,0.00013698,2]
[333162183,1721896241258,-151.0,0.00013698,2]
[333162185,1721896241268,-151.0,0.00013698,2]
[333162187,1721896241278,-500.0,0.00013698,2]
[333162189,1721896241288,-1451.17,0.00013698,2]
[333162191,1721896241299,-500.0,0.00013698,2]
[333162193,1721896241310,-500.0,0.00013698,2]
[333162195,1721896241323,-151.0,0.00013698,2]
[333162197,1721896241333,-151.0,0.00013698,2]
[333162198,1721896241343,-500.0,0.00013698,2]
[333162199,1721896241352,-500.0,0.00013698,2]
[333162201,1721896241361,-500.0,0.00013698,2]
[333162203,1721896241371,-500.0,0.00013698,2]
[333162204,1721896241383,-500.0,0.00013698,2]
[333162206,1721896241392,-398.373302,0.00013698,2]
[333162208,1721896241402,-398.373302,0.00013698,2]
[333162210,1721896241411,-500.0,0.00013698,2]
[333162211,1721896241420,-398.373302,0.00013698,2]
[333162213,1721896241429,-398.373302,0.00013698,2]
[333162215,1721896241439,-500.0,0.00013698,2]
[333162217,1721896241449,-500.0,0.00013698,2]
[333162219,1721896241459,-663.01,0.00013698,2]
[333162221,1721896241469,-500.0,0.00013698,2]
[333162224,1721896241484,-500.0,0.00013698,2]
[333162226,1721896241496,-151.0,0.00013698,2]
[333162228,1721896241506,-500.0,0.00013698,2]
[333162230,1721896241519,-152.730491,0.00013698,2]
[333162232,1721896241529,-151.0,0.00013698,2]
[333162234,1721896241539,-151.0,0.00013698,2]
[333162236,1721896241550,-500.0,0.00013698,2]
[333162239,1721896241562,-151.0,0.00013698,2]
[333162241,1721896241571,-151.0,0.00013698,2]
[333162243,1721896241580,-500.0,0.00013698,2]
[333162245,1721896241590,-690.15,0.00013698,2]
[333162247,1721896241600,-500.0,0.00013698,2]
[333162249,1721896241611,-500.0,0.00013698,2]
[333162251,1721896241621,-500.0,0.00013698,2]
[333162253,1721896241635,-634.65,0.00013698,2]
[333162255,1721896241646,-500.0,0.00013698,2]
[333162257,1721896241656,-531.04409947,0.00013698,2]
[333162259,1721896241666,-500.0,0.00013698,2]
[333162261,1721896241678,-512.06726257,0.00013698,2]
[333162262,1721896241689,-500.0,0.00013698,2]
[333162263,1721896241698,-514.6116664,0.00013698,2]
[333162264,1721896241707,-500.0,0.00013698,2]
[333162266,1721896241716,-500.0,0.00013698,2]
[333162267,1721896241725,-567.72,0.00013698,2]
[333162269,1721896241734,-500.0,0.00013698,2]
[333162271,1721896241743,-836.53,0.00013698,2]
[333162273,1721896241752,-500.0,0.00013698,2]
[333162275,1721896241762,-500.0,0.00013698,2]
[333162277,1721896241773,-500.0,0.00013698,2]
[333162280,1721896241784,-512.08549856,0.00013698,2]
[333162282,1721896241796,-500.0,0.00013698,2]
[333162284,1721896241808,-500.0,0.00013698,2]
[333162286,1721896241820,-1553.8,0.00013698,2]
[333162288,1721896241831,-500.0,0.00013698,2]
[333162291,1721896241842,-1101.56,0.00013698,2]
[333162293,1721896241853,-500.0,0.00013698,2]
[333162295,1721896241863,-500.0,0.00013698,2]
[333162297,1721896241873,-500.0,0.00013698,2]
[333162314,1721896242033,-500.0,0.00013698,2]
[333162317,1721896242047,-500.0,0.00013698,2]
[333162319,1721896242058,-1193.05,0.00013698,2]
[333162321,1721896242067,-1098.04,0.00013698,2]
[333162323,1721896242077,-500.0,0.00013698,2]
[333162325,1721896242088,-500.0,0.00013698,2]
[333162327,1721896242098,-705.04,0.00013698,2]
[333162329,1721896242108,-500.0,0.00013698,2]
[333162331,1721896242118,-500.0,0.00013698,2]
[333162333,1721896242127,-500.0,0.00013698,2]
[333162335,1721896242139,-500.0,0.00013698,2]
[333162337,1721896242149,-972.2,0.00013698,2]
[333162339,1721896242159,-500.0,0.00013698,2]
[333162341,1721896242168,-500.0,0.00013698,2]
[333162343,1721896242177,-500.0,0.00013698,2]
[333162345,1721896242187,-1414.76,0.00013698,2]
[333162347,1721896242198,-500.0,0.00013698,2]
[333162350,1721896242208,-500.0,0.00013698,2]
[333162352,1721896242219,-500.0,0.00013698,2]
[333162354,1721896242231,-222.77639781,0.00013698,2]
[333162356,1721896242241,-151.0,0.00013698,2]
[333162358,1721896242252,-1667.22,0.00013698,2]
[333162360,1721896242262,-183.698438,0.00013698,2]
[333162362,1721896242272,-183.698438,0.00013698,2]
[333162364,1721896242283,-500.0,0.00013698,2]
[333162366,1721896242294,-500.0,0.00013698,2]
[333162368,1721896242303,-183.698438,0.00013698,2]
[333162370,1721896242313,-183.698438,0.00013698,2]
[333162372,1721896242323,-500.0,0.00013698,2]
[333162374,1721896242332,-271.33520489,0.00013698,2]
[333162376,1721896242342,-500.0,0.00013698,2]
[333162378,1721896242351,-622.11,0.00013698,2]
[333162380,1721896242361,-304.87295067,0.00013698,2]
[333162382,1721896242371,-500.0,0.00013698,2]
[333162384,1721896242381,-1012.99,0.00013698,2]
[333162386,1721896242391,-500.0,0.00013698,2]
[333162388,1721896242400,-500.0,0.00013698,2]
[333162390,1721896242410,-151.0,0.00013698,2]
[333162392,1721896242419,-151.0,0.00013698,2]
[333162394,1721896242429,-503.71144622,0.00013698,2]
[333162396,1721896242439,-160.32548449,0.00013698,2]
[333162398,1721896242450,-500.0,0.00013698,2]
[333162400,1721896242460,-500.0,0.00013698,2]
[333162402,1721896242469,-500.0,0.00013698,2]
[333162404,1721896242482,-996.78,0.00013698,2]
[333162406,1721896242492,-500.0,0.00013698,2]
[333162408,1721896242501,-500.0,0.00013698,2]
[333162410,1721896242510,-500.0,0.00013698,2]
[333162413,1721896242521,-500.0,0.00013698,2]
[333162415,1721896242531,-306.81715131,0.00013698,2]
[333162417,1721896242541,-500.0,0.00013698,2]
[333162419,1721896242551,-500.0,0.00013698,2]
[333162421,1721896242561,-151.0,0.00013698,2]
[333162423,1721896242570,-151.0,0.00013698,2]
[333162425,1721896242580,-502.47574919,0.00013698,2]
[333162427,1721896242589,-151.0,0.00013698,2]
[333162429,1721896242598,-163.526148,0.00013698,2]
[333162431,1721896242608,-500.0,0.00013698,2]
[333162433,1721896242617,-500.0,0.00013698,2]
[333162435,1721896242627,-500.0,0.00013698,2]
[333162437,1721896242637,-500.0,0.00013698,2]
[333162439,1721896242646,-500.0,0.00013698,2]
[333162441,1721896242657,-639.07231465,0.00013698,2]
[333162443,1721896242666,-500.0,0.00013698,2]
[333162445,1721896242675,-1044.56,0.00013698,2]
[333162447,1721896242685,-500.0,0.00013698,2]
[333162449,1721896242695,-500.0,0.00013698,2]
[333162451,1721896242704,-500.0,0.00013698,2]
[333162453,1721896242714,-504.34113146,0.00013698,2]
[333162455,1721896242723,-500.0,0.00013698,2]
[333162456,1721896242733,-500.0,0.00013698,2]
[333162457,1721896242743,-170.680905,0.00013698,2]
[333162458,1721896242752,-701.44,0.00013698,2]
[333162459,1721896242761,-805.28,0.00013698,2]
[333162460,1721896242770,-170.680905,0.00013698,2]
[333162461,1721896242779,-336.78316336,0.00013698,2]
[333162487,1721896243138,-150.0,0.00013183,2]
[333162489,1721896243149,-359.85582432,0.00013286,2]
[333162492,1721896243158,-2442.95715557,0.00013355,2]
[333162495,1721896243170,-1970.04113667,0.00013355,2]
[333162497,1721896243182,-783.32762802,0.00013355,2]
[333162499,1721896243191,-163.21683664,0.00013698,2]
[333162501,1721896243200,-500.0,0.00013698,2]
[333162503,1721896243210,-500.0,0.00013698,2]
[333162505,1721896243219,-500.0,0.00013698,2]
[333162507,1721896243229,-914.7,0.00013698,2]
[333162509,1721896243238,-602.08,0.00013698,2]
[333162511,1721896243247,-547.02724119,0.00013698,2]
[333162513,1721896243257,-636.81,0.00013698,2]
[333162515,1721896243266,-500.0,0.00013698,2]
[333162517,1721896243276,-500.0,0.00013698,2]
[333162519,1721896243285,-500.0,0.00013698,2]
[333162521,1721896243295,-500.0,0.00013698,2]
[333162523,1721896243304,-569.70964056,0.00013698,2]
[333162525,1721896243313,-3067.77,0.00013698,2]
[333162527,1721896243322,-500.0,0.00013698,2]
[333162529,1721896243332,-1342.08,0.00013698,2]
[333162531,1721896243342,-500.0,0.00013698,2]
[333162533,1721896243352,-500.0,0.00013698,2]
[333162535,1721896243361,-151.0,0.00013698,2]
[333162537,1721896243371,-500.0,0.00013698,2]
[333162539,1721896243382,-473.442523,0.00013698,2]
[333162541,1721896243391,-2061.79,0.00013698,2]
[333162543,1721896243401,-500.0,0.00013698,2]
[333162545,1721896243411,-2257.89,0.00013698,2]
[333162547,1721896243420,-500.0,0.00013698,2]
[333162549,1721896243429,-473.442523,0.00013698,2]
[333162551,1721896243438,-500.0,0.00013698,2]
[333162553,1721896243448,-500.0,0.00013698,2]
[333162555,1721896243457,-967.05,0.00013698,2]
[333162557,1721896243466,-500.0,0.00013698,2]
[333162559,1721896243478,-500.0,0.00013698,2]
[333162561,1721896243487,-500.0,0.00013698,2]
[333162563,1721896243497,-157.206637,0.00013698,2]
[333162565,1721896243508,-157.206637,0.00013698,2]
[333162567,1721896243520,-500.0,0.00013698,2]
[333162569,1721896243530,-500.0,0.00013698,2]
[333162571,1721896243541,-157.206637,0.00013698,2]
[333162574,1721896243553,-157.206637,0.00013698,2]
[333162576,1721896243564,-296.6971912,0.00013698,2]
[333162578,1721896243575,-3660.82,0.00013698,2]
[333162580,1721896243585,-500.0,0.00013698,2]
[333162582,1721896243596,-500.0,0.00013698,2]
[333162585,1721896243607,-500.0,0.00013698,2]
[333162586,1721896243618,-1752.76,0.00013698,2]
[333162587,1721896243628,-500.0,0.00013698,2]
[333162588,1721896243638,-500.0,0.00013698,2]
[333162589,1721896243648,-232.48993703,0.00013698,2]
[333162590,1721896243659,-500.0,0.00013698,2]
[333162591,1721896243669,-231.47554272,0.00013698,2]
[333162592,1721896243681,-1537.6,0.00013698,2]
[333162593,1721896243691,-226.011335,0.00013698,2]
[333162594,1721896243702,-504.53112401,0.00013698,2]
[333162595,1721896243712,-226.011335,0.00013698,2]
[333162596,1721896243722,-500.0,0.00013698,2]
[333162597,1721896243733,-500.0,0.00013698,2]
[333162598,1721896243745,-3151.54,0.00013698,2]
[333162599,1721896243756,-223.964764,0.00013698,2]
[333162600,1721896243766,-500.0,0.00013698,2]
[333162601,1721896243775,-500.0,0.00013698,2]
[333162602,1721896243784,-500.0,0.00013698,2]
[333162603,1721896243795,-223.964764,0.00013698,2]
[333162604,1721896243807,-500.0,0.00013698,2]
[333162605,1721896243816,-500.0,0.00013698,2]
[333162606,1721896243827,-500.0,0.00013698,2]
[333162607,1721896243838,-712.99,0.00013698,2]
[333162608,1721896243848,-746.53,0.00013698,2]
[333162609,1721896243858,-500.0,0.00013698,2]
[333162610,1721896243868,-500.0,0.00013698,2]
[333162611,1721896243877,-500.0,0.00013698,2]
[333162612,1721896243888,-1708.59,0.00013698,2]
[333162613,1721896243898,-500.0,0.00013698,2]
[333162614,1721896243907,-500.0,0.00013698,2]
[333162615,1721896243917,-500.0,0.00013698,2]
[333162616,1721896243927,-11572.28,0.00013698,2]
[333162618,1721896243936,-500.0,0.00013698,2]
[333162620,1721896243946,-949.19,0.00013698,2]
[333162622,1721896243955,-500.0,0.00013698,2]
[333162624,1721896243965,-500.0,0.00013698,2]
[333162626,1721896243975,-865.04,0.00013698,2]
[333162628,1721896243984,-151.0,0.00013698,2]
[333162630,1721896243994,-151.0,0.00013698,2]
[333162631,1721896244004,-500.0,0.00013698,2]
[333162633,1721896244013,-500.0,0.00013698,2]
[333162635,1721896244022,-7498.65,0.00013698,2]
[333162637,1721896244031,-500.0,0.00013698,2]
[333162639,1721896244041,-739.65,0.00013698,2]
[333162641,1721896244051,-500.0,0.00013698,2]
[333162643,1721896244061,-500.0,0.00013698,2]
[333162645,1721896244070,-2690.14,0.00013698,2]
[333162647,1721896244079,-500.0,0.00013698,2]
[333162649,1721896244088,-500.0,0.00013698,2]
[333162651,1721896244098,-1751.5,0.00013698,2]
[333162653,1721896244108,-2304.9,0.00013698,2]
[333162655,1721896244118,-500.0,0.00013698,2]
[333162656,1721896244128,-1334.59,0.00013698,2]
[333162658,1721896244140,-500.0,0.00013698,2]
[333162660,1721896244149,-500.0,0.00013698,2]
[333162662,1721896244157,-500.0,0.00013698,2]
[333162664,1721896244166,-1628.63,0.00013698,2]
[333162666,1721896244175,-789.73,0.00013698,2]
[333162668,1721896244187,-500.0,0.00013698,2]
[333162670,1721896244197,-1001.91,0.00013698,2]
[333162672,1721896244207,-10247.56,0.00013698,2]
[333162674,1721896244216,-500.0,0.00013698,2]
[333162676,1721896244225,-500.0,0.00013698,2]
[333162678,1721896244235,-1465.78,0.00013698,2]
[333162680,1721896244245,-500.0,0.00013698,2]
[333162682,1721896244256,-500.0,0.00013698,2]
[333162684,1721896244265,-500.0,0.00013698,2]
[333162686,1721896244275,-500.0,0.00013698,2]
[333162688,1721896244285,-500.0,0.00013698,2]
[333162690,1721896244294,-500.0,0.00013698,2]
[333162692,1721896244304,-759.52,0.00013698,2]
[333162694,1721896244313,-3797.18,0.00013698,2]
[333162696,1721896244323,-500.0,0.00013698,2]
[333162698,1721896244334,-500.0,0.00013698,2]
[333162700,1721896244344,-1323.2,0.00013698,2]
[333162702,1721896244353,-500.0,0.00013698,2]
[333162704,1721896244363,-500.0,0.00013698,2]
[333162706,1721896244373,-500.0,0.00013698,2]
[333162708,1721896244385,-500.0,0.00013698,2]
[333162710,1721896244395,-500.0,0.00013698,2]
[333162712,1721896244405,-1856.32,0.00013698,2]
[333162714,1721896244415,-4195.71,0.00013698,2]
[333162716,1721896244424,-500.0,0.00013698,2]
[333162718,1721896244435,-500.0,0.00013698,2]
[333162720,1721896244445,-500.0,0.00013698,2]
[333162722,1721896244455,-151.0,0.00013698,2]
[333162724,1721896244465,-933.05,0.00013698,2]
[333162726,1721896244477,-500.0,0.00013698,2]
[333162728,1721896244487,-500.0,0.00013698,2]
[333162730,1721896244498,-614.19,0.00013698,2]
[333162732,1721896244508,-995.91,0.00013698,2]
[333162734,1721896244519,-500.0,0.00013698,2]
[333162736,1721896244528,-500.0,0.00013698,2]
[333162739,1721896244538,-814.9,0.00013698,2]
[333162741,1721896244548,-1676.21,0.00013698,2]
[333162743,1721896244558,-500.0,0.00013698,2]
[333162745,1721896244568,-500.0,0.00013698,2]
[333162747,1721896244578,-323.207088,0.00013698,2]
[333162749,1721896244588,-1770.04,0.00013698,2]
[333162751,1721896244597,-1161.01,0.00013698,2]
[333162753,1721896244606,-542.11641882,0.00013698,2]
[333162755,1721896244616,-323.207088,0.00013698,2]
[333162757,1721896244626,-568.02,0.00013698,2]
[333162759,1721896244637,-500.0,0.00013698,2]
[333162761,1721896244647,-1267.88,0.00013698,2]
[333162763,1721896244656,-500.0,0.00013698,2]
[333162764,1721896244666,-500.0,0.00013698,2]
[333162767,1721896244676,-1255.03,0.00013698,2]
[333162768,1721896244685,-500.0,0.00013698,2]
[333162770,1721896244695,-500.0,0.00013698,2]
[333162772,1721896244705,-500.0,0.00013698,2]
[333162774,1721896244715,-500.0,0.00013698,2]
[333162776,1721896244724,-500.0,0.00013698,2]
[333162778,1721896244734,-500.0,0.00013698,2]
[333162780,1721896244743,-195.24148491,0.00013698,2]
[333162782,1721896244753,-232.48008279,0.00013698,2]
[333162837,1721896245276,-289.60731218,0.00013698,2]
[333162839,1721896245286,-500.0,0.00013698,2]
[333162841,1721896245294,-500.0,0.00013698,2]
[333162843,1721896245304,-514.85693931,0.00013698,2]
[333162845,1721896245313,-500.0,0.00013698,2]
[333162865,1721896245486,-500.0,0.00013698,2]
[333162867,1721896245496,-500.0,0.00013698,2]
[333162869,1721896245505,-500.0,0.00013698,2]
[333162871,1721896245515,-1397.46886362,0.00013698,2]
[333162929,1721896248427,-171.76113638,0.00013698,2]
[333162930,1721896248437,-111.62551555,0.00013698,2]
[333162938,1721896302607,159.53743967,9.999e-05,2]
[333162939,1721896313273,167.84356976,9.999e-05,2]
[333162940,1721896316987,180.29524211,9.999e-05,2]
[333162941,1721896318877,160.00381439,9.999e-05,2]
[333162942,1721896322066,600.24609405,9.999e-05,2]
[333162943,1721896322119,196.23272376,9.999e-05,2]
[333162944,1721896322446,848.37789621,9.999e-05,2]
[333162945,1721896322588,519.06293676,9.999e-05,2]
[333162946,1721896323028,341.69630942,9.999e-05,2]
[333162947,1721896323665,567.99228217,9.999e-05,2]
[333162948,1721896325587,156.572996,9.999e-05,2]
[333162949,1721896326558,778.87203636,9.999e-05,2]
[333162950,1721896327224,240.55889109,9.999e-05,2]
[333162951,1721896328013,319.40039305,9.999e-05,2]
[333162952,1721896329194,162.90193781,9.999e-05,2]
[333162953,1721896331297,531.35557493,9.999e-05,2]
[333162954,1721896335574,167.25227455,9.999e-05,2]
[333162955,1721896339942,731.30595831,9.999e-05,2]
[333162956,1721896341004,154.86972814,9.999e-05,2]
[333162957,1721896343044,154.85901002,9.999e-05,2]
[333162958,1721896343217,303.38750026,9.999e-05,2]
[333162959,1721896343652,236.94188495,9.999e-05,2]
[333162960,1721896344469,156.65797586,9.999e-05,2]
[333162961,1721896344655,154.89478369,9.999e-05,2]
[333162962,1721896345023,208.55751505,9.999e-05,2]
[333162963,1721896347789,157.93433402,9.999e-05,2]
[333162964,1721896356180,209.65653934,9.999e-05,2]
[333162965,1721896358313,241.32566655,9.999e-05,2]
[333162966,1721896361309,533.38063441,9.999e-05,2]
[333162967,1721896365165,663.56673998,9.999e-05,2]
[333162968,1721896367374,726.64238482,9.999e-05,2]
[333162969,1721896417958,154.99978836,9.999e-05,2]
[333162970,1721896443265,179.47052399,9.999e-05,2]
[333162973,1721896794883,325905.30227445,0.00024,60]
[333162974,1721896968411,200.0,0.0001,2]
[333162975,1721897038450,200.0,0.0001,2]
[333162976,1721897082736,568.08421519,9.999e-05,2]
[333162977,1721897094675,459.2503171,9.999e-05,2]
[333162978,1721897095029,968.29265867,9.999e-05,2]
[333162979,1721897097125,156.54779327,9.999e-05,2]
[333162980,1721897101977,297.23375743,9.999e-05,2]
[333162981,1721897107711,191.44904302,9.999e-05,2]
[333162982,1721897110506,337.50052125,9.999e-05,2]
[333162983,1721897112402,200.0,0.0001,2]
[333162984,1721897113638,403.39616838,9.999e-05,2]
[333162985,1721897113824,329.68858426,9.999e-05,2]
[333162986,1721897113939,159.99043494,9.999e-05,2]
[333162987,1721897119442,188.0737834,9.999e-05,2]
[333162988,1721897122907,201.30530872,9.999e-05,2]
[333162989,1721897126060,643.6256542,9.999e-05,2]
[333162990,1721897126199,154.88244705,9.999e-05,2]
[333162991,1721897131817,248.87416602,9.999e-05,2]
[333162992,1721897134244,154.80649189,9.999e-05,2]
[333162993,1721897134745,532.10693816,9.999e-05,2]
[333162994,1721897138613,309.42755902,9.999e-05,2]
[333162995,1721897139806,154.80649189,9.999e-05,2]
[333162996,1721897141461,2030.65796342,9.999e-05,2]
[333162997,1721897148894,163.06804582,9.999e-05,2]
[333162999,1721897164256,154.80649189,9.999e-05,2]
[333163000,1721897169796,154.80649189,9.999e-05,2]
[333163001,1721897179787,200.0,0.0001,2]
[333163002,1721897191710,428.20273478,9.999e-05,2]
[333163003,1721897197706,3782.59755445,9.999e-05,2]
[333163004,1721897227888,201.30530872,9.999e-05,2]
[333163005,1721897233101,16274.21667808,9.999e-05,2]
[333163006,1721897248380,200.0,0.0001,2]
[333163007,1721897313950,200.0,0.0001,2]
[333163008,1721897389507,200.0,0.0001,2]
[333163098,1721897437834,-3062.45863511,0.00010685,2]
[333163102,1721897438470,-5345.62480761,0.00010685,2]
[333163103,1721897438480,-250.0,0.00010785,2]
[333163104,1721897438490,-250.0,0.00010815,2]
[333163105,1721897438499,-250.0,0.00010844,2]
[333163106,1721897438508,-250.0,0.00010874,2]
[333163107,1721897438517,-300.0,0.0001089,2]
[333163108,1721897438526,-300.0,0.0001089,2]
[333163109,1721897438542,-1872.8964311,0.00010891,2]
[333163110,1721897438556,-250.0,0.00010903,2]
[333163111,1721897438566,-250.0,0.00010933,2]
[333163112,1721897438577,-886.2,0.00010959,2]
[333163113,1721897438587,-250.0,0.00010963,2]
[333163114,1721897438596,-250.0,0.00010992,2]
[333163115,1721897438606,-250.0,0.00011022,2]
[333163116,1721897438616,-250.0,0.00011051,2]
[333163117,1721897438626,-250.0,0.00011081,2]
[333163118,1721897438635,-250.0,0.0001111,2]
[333163119,1721897438645,-250.0,0.0001114,2]
[333163120,1721897438656,-250.0,0.0001117,2]
[333163121,1721897438666,-250.0,0.00011199,2]
[333163122,1721897438675,-250.0,0.00011229,2]
[333163123,1721897438685,-250.0,0.00011258,2]
[333163124,1721897438696,-250.0,0.00011288,2]
[333163125,1721897438707,-240.52191926,0.00011318,2]
[333163126,1721897438720,-9.47808074,0.00011318,2]
[333163127,1721897438730,-250.0,0.00011347,2]
[333163128,1721897438739,-400.0,0.0001137,2]
[333163129,1721897438749,-420.0,0.00011969,2]
[333163130,1721897438759,-420.0,0.00011979,2]
[333163131,1721897438768,-24900.0,0.00012279,2]
[333163132,1721897438778,-206.6937542,0.00012807,2]
[333163133,1721897438788,-206.6937542,0.00012878,2]
[333163134,1721897438797,-2000.0,0.00012889,2]
[333163135,1721897438807,-16782.99192364,0.00012899,2]
[333163136,1721897438816,-4136.90377416,0.000129,2]
[333163137,1721897438828,-16782.99192362,0.00012919,2]
[333163138,1721897438838,-16782.99192362,0.00012939,2]
[333163139,1721897438848,-65989.5344097,0.00012948,2]
[333163140,1721897438859,-16782.99192362,0.00012958,2]
[333163141,1721897438868,-2353.55336722,0.00012978,2]
[333163142,1721897438878,-16782.99192362,0.00012978,2]
[333163143,1721897438887,-263958.137639,0.00012989,2]
[333163144,1721897438899,-655626.751367,0.00012999,2]
[333163145,1721897438909,-150.112233,0.00013,2]
[333163146,1721897438919,-206.6937542,0.00013078,2]
[333163147,1721897438928,-600.0,0.00013147,2]
[333163148,1721897438938,-551.0,0.00013154,2]
[333163149,1721897438948,-587.0,0.00013177,2]
[333163150,1721897438957,-4136.90377409,0.00013424,2]
[333163151,1721897438967,-153.0,0.00013425,2]
[333163152,1721897438976,-200.0,0.00013425,2]
[333163153,1721897438986,-5306.88604622,0.00013442,2]
[333163154,1721897438997,-11444.9376388,0.000135,2]
[333163164,1721897439910,-6237.75566517,0.000135,2]
[333163165,1721897439970,-6335.26628,0.000135,2]
[333163166,1721897440027,-36801.94755157,0.000135,2]
[333163167,1721897440036,-661.20438156,0.00013593,2]
[333163168,1721897440046,-200.0,0.00013598,2]
[333163169,1721897440055,-587.8971237,0.000136,2]
[333163170,1721897440068,-587.8658538,0.00013609,2]
[333163171,1721897440078,-587.8078635,0.00013609,2]
[333163172,1721897440087,-293.9329269,0.00013609,2]
[333163173,1721897440097,-293.9641968,0.00013609,2]
[333163174,1721897440106,-367.51233122,0.00013655,2]
[333163175,1721897440116,-76297.7451248,0.0001369,2]
[333163176,1721897440125,-160.0,0.00013693,3]
[333163177,1721897440135,-151.0,0.00013698,2]
[333163178,1721897440147,-151.0,0.00013698,2]
[333163179,1721897440159,-500.0,0.00013698,2]
[333163180,1721897440170,-500.0,0.00013698,2]
[333163181,1721897440180,-500.0,0.00013698,2]
[333163182,1721897440190,-500.0,0.00013698,2]
[333163183,1721897440199,-500.0,0.00013698,2]
[333163184,1721897440209,-500.0,0.00013698,2]
[333163185,1721897440217,-500.0,0.00013698,2]
[333163186,1721897440227,-500.0,0.00013698,2]
[333163187,1721897440239,-500.0,0.00013698,2]
[333163188,1721897440250,-500.0,0.00013698,2]
[333163189,1721897440260,-500.0,0.00013698,2]
[333163190,1721897440270,-500.0,0.00013698,2]
[333163191,1721897440280,-500.0,0.00013698,2]
[333163192,1721897440289,-500.0,0.00013698,2]
[333163193,1721897440299,-500.0,0.00013698,2]
[333163194,1721897440309,-500.0,0.00013698,2]
[333163195,1721897440318,-500.0,0.00013698,2]
[333163196,1721897440328,-500.0,0.00013698,2]
[333163197,1721897440337,-500.0,0.00013698,2]
[333163198,1721897440346,-500.0,0.00013698,2]
[333163199,1721897440356,-500.0,0.00013698,2]
[333163200,1721897440365,-500.0,0.00013698,2]
[333163201,1721897440376,-488.82,0.00013698,2]
[333163202,1721897440386,-505.94128905,0.00013698,2]
[333163203,1721897440397,-500.0157403,0.00013698,2]
[333163204,1721897440408,-500.0,0.00013698,2]
[333163205,1721897440420,-587.53,0.00013698,2]
[333163206,1721897440431,-500.0,0.00013698,2]
[333163207,1721897440442,-500.0,0.00013698,2]
[333163208,1721897440454,-957.4,0.00013698,2]
[333163209,1721897440463,-957.4,0.00013698,2]
[333163210,1721897440473,-957.4,0.00013698,2]
[333163211,1721897440484,-957.4,0.00013698,2]